bitfinex/quotes_BTCUSD_20241011
["timestamp","ask_amount","ask_price","bid_price","bid_amount"]
[1728672689467,0.23875466,62895.0,62888.0,0.51280911]
[1728672706442,0.23875466,62895.0,62888.0,0.50780911]
[1728672707736,0.23875466,62895.0,62888.0,0.75403874]
[1728672708601,0.23875466,62895.0,62888.0,0.77774737]
[1728672709669,0.23875466,62895.0,62888.0,0.68291286]
[1728672710075,9.04926167,62896.0,62888.0,0.68291286]
[1728672710275,0.23875466,62895.0,62888.0,0.806456]
[1728672710480,0.23875466,62895.0,62888.0,0.85601742]
[1728672710685,0.23875466,62895.0,62888.0,0.73747428]
[1728672712455,0.23875466,62895.0,62888.0,0.85620405]
[1728672712664,0.23875466,62895.0,62888.0,0.73747428]
[1728672713286,0.23875466,62895.0,62888.0,0.85622267]
[1728672713510,0.23875466,62895.0,62888.0,0.73747428]
[1728672714574,0.23875466,62895.0,62888.0,0.73774373]
[1728672718705,0.23875466,62895.0,62888.0,0.73799264]
[1728672721924,0.23875466,62895.0,62888.0,0.73299264]
[1728672722402,0.23875466,62895.0,62888.0,0.55479264]
[1728672725744,9.04926167,62896.0,62888.0,0.55479264]
[1728672725954,0.23875466,62895.0,62888.0,0.72829264]
[1728672726401,0.23875466,62895.0,62888.0,0.87102045]
[1728672727529,0.23875466,62895.0,62888.0,0.72829264]
[1728672729128,0.23875466,62895.0,62888.0,0.55267053]
[1728672730993,0.23875466,62895.0,62888.0,0.72851325]
[1728672732392,0.23875466,62895.0,62888.0,0.93952452]
[1728672733365,0.23875466,62895.0,62888.0,0.72851325]
[1728672733617,0.23875466,62895.0,62888.0,0.93952452]
[1728672734327,0.23875466,62895.0,62888.0,0.72851325]
[1728672734554,0.23875466,62895.0,62888.0,0.93952452]
[1728672734785,0.23875466,62895.0,62888.0,0.72851325]
[1728672735013,0.23875466,62895.0,62888.0,0.93952452]
[1728672735758,0.23875466,62895.0,62888.0,0.72851325]
[1728672735991,0.23875466,62895.0,62888.0,0.93973399]
[1728672736228,0.23875466,62895.0,62888.0,0.72851325]
[1728672736940,0.23875466,62895.0,62888.0,0.94173399]
[1728672737184,0.23875466,62895.0,62888.0,0.72868189]
[1728672737433,0.23875466,62895.0,62888.0,0.93989418]
[1728672737671,0.23875466,62895.0,62888.0,0.72868189]
[1728672737917,0.23875466,62895.0,62888.0,0.93988987]
[1728672738149,0.23875466,62895.0,62888.0,0.95478913]
[1728672738400,0.23875466,62895.0,62888.0,0.95676795]
[1728672738615,0.23875466,62895.0,62888.0,0.74358115]
[1728672739032,0.23875466,62895.0,62888.0,0.95476191]
[1728672740073,0.23875466,62895.0,62888.0,0.74358115]
[1728672740276,0.23875466,62895.0,62888.0,0.93986265]
[1728672740495,0.23875466,62895.0,62888.0,0.74358203]
[1728672741254,0.23875466,62895.0,62888.0,0.95487192]
[1728672741655,0.23875466,62895.0,62888.0,0.95487295]
[1728672741833,0.23875466,62895.0,62888.0,0.95487754]
[1728672742038,0.23875466,62895.0,62888.0,0.95494553]
[1728672742247,0.23875466,62895.0,62888.0,0.74365015]
[1728672743402,0.23875466,62895.0,62888.0,0.95494553]
[1728672743814,0.23875466,62895.0,62888.0,0.74365495]
[1728672744224,0.23875466,62895.0,62888.0,0.95495033]
[1728672744854,0.23875466,62895.0,62888.0,0.74365495]
[1728672749163,0.000821,62889.0,62888.0,0.74365501]
[1728672750541,0.000821,62889.0,62888.0,0.72875007]
[1728672750821,0.000821,62889.0,62888.0,0.74365199]
[1728672752312,0.000821,62889.0,62888.0,0.72875007]
[1728672753032,0.000821,62889.0,62888.0,0.74365047]
[1728672753356,0.000821,62889.0,62888.0,0.72875007]
[1728672753499,0.000821,62889.0,62888.0,0.74365047]
[1728672755450,0.000821,62889.0,62888.0,0.72875007]
[1728672755668,0.000821,62889.0,62888.0,0.74365298]
[1728672755874,0.000821,62889.0,62888.0,0.72875007]
[1728672756053,0.000821,62889.0,62888.0,0.74365182]
[1728672756674,0.000821,62889.0,62888.0,0.56757228]
[1728672756891,0.000821,62889.0,62888.0,0.74352983]
[1728672759485,0.000821,62889.0,62888.0,0.95467889]
[1728672760017,0.000821,62889.0,62888.0,0.74352983]
[1728672760547,9.04926167,62896.0,62895.0,0.163995]
[1728672760755,9.04926167,62896.0,62895.0,0.74223973]
[1728672760955,9.04926167,62896.0,62895.0,0.95327223]
[1728672761501,9.04926167,62896.0,62895.0,0.75047545]
[1728672762004,9.04926167,62896.0,62895.0,0.75247545]
[1728672762211,9.04926167,62896.0,62895.0,0.75047545]
[1728672762410,9.04926167,62896.0,62895.0,0.75045511]
[1728672762542,9.05126167,62896.0,62895.0,0.75045511]
[1728672762938,9.05126167,62896.0,62895.0,0.7523103]
[1728672762939,9.04926167,62896.0,62895.0,0.7523103]
[1728672763631,9.04926167,62896.0,62895.0,0.7543103]
[1728672764004,9.04926167,62896.0,62895.0,0.75609217]
[1728672764382,9.04926167,62896.0,62895.0,0.75409217]
[1728672764946,9.04926167,62896.0,62895.0,0.85369012]
[1728672765061,9.04926167,62896.0,62895.0,0.83880871]
[1728672765264,9.04926167,62896.0,62895.0,0.84464099]
[1728672766134,9.04926167,62896.0,62895.0,0.8447053]
[1728672766939,9.04926167,62896.0,62895.0,0.85958169]
[1728672769066,9.04926167,62896.0,62895.0,0.85958084]
[1728672770719,9.04926167,62896.0,62895.0,0.85949931]
[1728672773149,9.04926167,62896.0,62895.0,0.75990136]
[1728672773357,9.04926167,62896.0,62895.0,0.52873994]
[1728672773599,9.04926167,62896.0,62895.0,0.671563]
[1728672773839,9.04926167,62896.0,62895.0,0.52873994]
[1728672774198,9.04926167,62896.0,62895.0,0.52873945]
[1728672774849,9.04926167,62896.0,62895.0,0.67156251]
[1728672775052,9.04926167,62896.0,62895.0,0.52873945]
[1728672777561,9.04926167,62896.0,62895.0,0.52874075]
[1728672778014,9.04926167,62896.0,62895.0,0.53374075]
[1728672778417,9.04926167,62896.0,62895.0,0.58332603]
[1728672778580,9.04926167,62896.0,62895.0,0.53374075]
[1728672779189,9.04926167,62896.0,62895.0,0.5188644]
[1728672779389,9.04926167,62896.0,62895.0,0.58332486]
[1728672779795,9.04926167,62896.0,62895.0,0.53373929]
[1728672780326,9.04926167,62896.0,62895.0,0.53374466]
[1728672780522,9.04926167,62896.0,62895.0,0.58332958]
[1728672780877,9.04926167,62896.0,62895.0,0.53374466]
[1728672781481,9.04926167,62896.0,62895.0,0.58336074]
[1728672783755,9.04926167,62896.0,62895.0,0.53384819]
[1728672786400,9.04926167,62896.0,62895.0,0.58347088]
[1728672788696,9.04926167,62896.0,62895.0,0.56859599]
[1728672788903,9.04926167,62896.0,62895.0,0.58348756]
[1728672789276,9.04926167,62896.0,62895.0,0.57848756]
[1728672789487,9.04926167,62896.0,62895.0,0.67176259]
[1728672789704,9.04926167,62896.0,62895.0,0.52886487]
[1728672789905,9.04926167,62896.0,62895.0,0.51977396]
[1728672790730,9.04926167,62896.0,62895.0,0.51877396]
[1728672790938,9.05126167,62896.0,62895.0,0.51677396]
[1728672791448,9.05226167,62896.0,62895.0,0.51677396]
[1728672792305,9.05226167,62896.0,62895.0,0.51677356]
[1728672793686,9.05026167,62896.0,62895.0,0.51673897]
[1728672793891,9.04926167,62896.0,62895.0,0.51673897]
[1728672794094,9.04926167,62896.0,62895.0,0.51773897]
[1728672794320,9.04926167,62896.0,62895.0,0.51873897]
[1728672794529,9.04926167,62896.0,62895.0,0.51773897]
[1728672794740,9.04926167,62896.0,62895.0,0.51973897]
[1728672795940,9.04926167,62896.0,62895.0,0.5048478]
[1728672796143,9.04926167,62896.0,62895.0,0.51973838]
[1728672796372,9.04926167,62896.0,62895.0,0.51973843]
[1728672798620,9.04926167,62896.0,62895.0,0.51974428]
[1728672799824,9.04926167,62896.0,62895.0,0.50485365]
[1728672800057,9.04926167,62896.0,62895.0,0.51974261]
[1728672803448,9.04926167,62896.0,62895.0,0.50490887]
[1728672803973,9.04926167,62896.0,62895.0,0.51980269]
[1728672806914,9.04926167,62896.0,62895.0,0.51980598]
[1728672807122,9.04926167,62896.0,62895.0,0.52909054]
[1728672808156,9.04926167,62896.0,62895.0,0.52909343]
[1728672810766,9.04926167,62896.0,62895.0,0.51419961]
[1728672810985,9.04926167,62896.0,62895.0,0.5290975]
[1728672814477,9.04926167,62896.0,62895.0,0.52909702]
[1728672816384,9.04926167,62896.0,62895.0,0.52909954]
[1728672816885,9.04926167,62896.0,62895.0,0.67202374]
[1728672817764,9.04926167,62896.0,62895.0,0.67217312]
[1728672817981,9.04926167,62896.0,62895.0,0.65727319]
[1728672818179,9.04926167,62896.0,62895.0,0.67217447]
[1728672818389,9.04926167,62896.0,62895.0,0.56393852]
[1728672818596,9.04926167,62896.0,62895.0,0.52918455]
[1728672818816,9.04926167,62896.0,62895.0,0.57884575]
[1728672819026,9.04926167,62896.0,62895.0,0.78998115]
[1728672819256,9.04926167,62896.0,62895.0,0.78995226]
[1728672819481,9.04926167,62896.0,62895.0,0.67054575]
[1728672819688,9.04926167,62896.0,62895.0,0.67554575]
[1728672819899,9.04926167,62896.0,62895.0,0.96215226]
[1728672820133,9.04926167,62896.0,62895.0,0.75104575]
[1728672820749,9.04926167,62896.0,62895.0,0.75304575]
[1728672820969,9.04926167,62896.0,62895.0,0.75104575]
[1728672821374,9.04926167,62896.0,62895.0,0.96515226]
[1728672821683,9.04926167,62896.0,62895.0,1.02337039]
[1728672821893,8.99955732,62896.0,62895.0,0.77703513]
[1728672822105,8.99955732,62896.0,62895.0,0.77603513]
[1728672822314,8.99955732,62896.0,62895.0,0.76414322]
[1728672822707,8.99955732,62896.0,62895.0,0.97512619]
[1728672823164,8.99955732,62896.0,62895.0,0.97212619]
[1728672823401,8.99955732,62896.0,62895.0,1.00000572]
[1728672823812,8.99955732,62896.0,62895.0,0.98700572]
[1728672824066,8.99955732,62896.0,62895.0,0.98400572]
[1728672824318,8.99955732,62896.0,62895.0,0.99380494]
[1728672824520,8.99955732,62896.0,62895.0,0.98380494]
[1728672824725,8.99955732,62896.0,62895.0,0.7998622]
[1728672824930,8.99955732,62896.0,62895.0,1.01077486]
[1728672825143,8.99955732,62896.0,62895.0,0.7998622]
[1728672825395,8.99955732,62896.0,62895.0,1.01077486]
[1728672825615,8.99955732,62896.0,62895.0,0.7998622]
[1728672827555,8.99955732,62896.0,62895.0,0.79980699]
[1728672829069,8.99955732,62896.0,62895.0,0.89980699]
[1728672830911,8.99955732,62896.0,62895.0,0.96342699]
[1728672831114,8.99955732,62896.0,62895.0,2.63482399]
[1728672831316,8.84056232,62896.0,62895.0,2.63482399]
[1728672831473,8.18067201,62896.0,62895.0,2.63482399]
[1728672831670,8.0030329,62896.0,62895.0,2.63466965]
[1728672831869,7.9886329,62896.0,62895.0,2.63464012]
[1728672832095,7.9886329,62896.0,62895.0,2.63438706]
[1728672832302,7.9886329,62896.0,62895.0,2.61953706]
[1728672832507,7.8296379,62896.0,62895.0,2.59253706]
[1728672832711,7.81196638,62896.0,62895.0,2.62053706]
[1728672832920,7.8031663,62896.0,62895.0,2.62053706]
[1728672833147,7.79359198,62896.0,62895.0,2.60653706]
[1728672833353,7.76179298,62896.0,62895.0,2.60653706]
[1728672833550,7.68864871,62896.0,62895.0,2.60653706]
[1728672833774,7.65684971,62896.0,62895.0,2.60653706]
[1728672833975,7.62505071,62896.0,62895.0,2.62053706]
[1728672834154,7.13568823,62896.0,62895.0,2.62053706]
[1728672834351,7.07209023,62896.0,62895.0,2.62053706]
[1728672834614,6.97669323,62896.0,62895.0,2.62053706]
[1728672835440,6.84949723,62896.0,62895.0,2.62053706]
[1728672835595,6.81769823,62896.0,62895.0,2.62053706]
[1728672836667,6.72230123,62896.0,62895.0,2.71335366]
[1728672836873,6.69050223,62896.0,62895.0,2.39555285]
[1728672837034,6.65870323,62896.0,62895.0,2.7129598]
[1728672837442,6.62690423,62896.0,62895.0,2.7129598]
[1728672837649,6.56330623,62896.0,62895.0,2.57065476]
[1728672838028,6.53150723,62896.0,62895.0,0.89925776]
[1728672838399,6.43611023,62896.0,62895.0,5.51660824]
[1728672838516,6.34071323,62896.0,62895.0,5.76175091]
[1728672839453,6.30891423,62896.0,62895.0,5.76175091]
[1728672840331,6.30891423,62896.0,62895.0,5.35068191]
[1728672840581,6.27711523,62896.0,62895.0,5.35068191]
[1728672840794,6.24531623,62896.0,62895.0,5.35068191]
[1728672841005,6.21351723,62896.0,62895.0,5.35068191]
[1728672841692,6.18171823,62896.0,62895.0,5.35150191]
[1728672842241,6.18171823,62896.0,62895.0,4.89634691]
[1728672843187,6.18171823,62896.0,62895.0,5.03846095]
[1728672843420,6.18171823,62896.0,62895.0,5.03646095]
[1728672843643,6.18171823,62896.0,62895.0,5.03846095]
[1728672843874,6.18171823,62896.0,62895.0,5.20616095]
[1728672844094,6.18171823,62896.0,62895.0,5.03846095]
[1728672846858,6.18171823,62896.0,62895.0,4.89634691]
[1728672848828,5.9315165,62896.0,62895.0,4.89634691]
[1728672849224,5.9315165,62896.0,62895.0,4.85938191]
[1728672849785,5.9315165,62896.0,62895.0,4.73625691]
[1728672849992,5.9315165,62896.0,62895.0,4.73552917]
[1728672850577,5.9315165,62896.0,62895.0,1.19387817]
[1728672850778,5.9315165,62896.0,62895.0,5.03564901]
[1728672851039,5.9315165,62896.0,62895.0,5.28036717]
[1728672851459,5.9315165,62896.0,62895.0,5.18327917]
[1728672851659,5.9315165,62896.0,62895.0,4.61080117]
[1728672851971,5.9315165,62896.0,62895.0,4.55454617]
[1728672853599,5.66538107,62896.0,62895.0,4.55454617]
[1728672853800,5.66538107,62896.0,62895.0,4.69667385]
[1728672853930,5.66538107,62896.0,62895.0,4.55454617]
[1728672854540,5.66538107,62896.0,62895.0,4.69668765]
[1728672856415,5.66538107,62896.0,62895.0,4.55454617]
[1728672856626,5.56998407,62896.0,62895.0,4.6967177]
[1728672857495,5.56998407,62896.0,62895.0,4.55454617]
[1728672859026,5.56998407,62896.0,62895.0,2.62720617]
[1728672859232,5.56998407,62896.0,62895.0,2.38248801]
[1728672859361,5.56998407,62896.0,62895.0,2.36848801]
[1728672860002,5.56998407,62896.0,62895.0,2.38248801]
[1728672860424,5.56998407,62896.0,62895.0,2.49608596]
[1728672861411,5.56998407,62896.0,62895.0,2.48208596]
[1728672861661,5.56998407,62896.0,62895.0,2.49608596]
[1728672863667,5.56998407,62896.0,62895.0,2.70584438]
[1728672864279,5.56998407,62896.0,62895.0,2.70665045]
[1728672864477,5.56998407,62896.0,62895.0,2.49645236]
[1728672864689,5.56998407,62896.0,62895.0,1.04912436]
[1728672864927,5.56998407,62896.0,62895.0,4.34454136]
[1728672865083,5.56998407,62896.0,62895.0,4.58977247]
[1728672865291,5.56998407,62896.0,62895.0,4.51600847]
[1728672865501,5.56998407,62896.0,62895.0,4.46637747]
[1728672865702,5.56998407,62896.0,62895.0,4.40329547]
[1728672865911,5.56998407,62896.0,62895.0,3.65607447]
[1728672866120,5.56998407,62896.0,62895.0,3.41084336]
[1728672866698,5.56998407,62896.0,62895.0,3.65607447]
[1728672867022,5.56979168,62896.0,62895.0,3.65607447]
[1728672869057,5.56979168,62896.0,62895.0,3.65657123]
[1728672869472,5.56979168,62896.0,62895.0,3.55697328]
[1728672869695,5.56979168,62896.0,62895.0,1.16110128]
[1728672869922,5.56979168,62896.0,62895.0,0.85257139]
[1728672870123,5.56979168,62896.0,62895.0,0.65753339]
[1728672870679,5.56979168,62896.0,62895.0,0.64353339]
[1728672870889,5.56979168,62896.0,62895.0,0.72953339]
[1728672871099,5.56979168,62896.0,62895.0,0.76653339]
[1728672871509,5.56979168,62896.0,62895.0,0.78053339]
[1728672872120,5.56979168,62896.0,62895.0,0.78253339]
[1728672872343,5.56979168,62896.0,62895.0,0.78053339]
[1728672872542,5.56979168,62896.0,62895.0,1.02605428]
[1728672872702,5.56979168,62896.0,62895.0,0.78053339]
[1728672872914,5.56979168,62896.0,62895.0,0.78253339]
[1728672873546,5.56979168,62896.0,62895.0,0.78053339]
[1728672873797,5.56979168,62896.0,62895.0,0.78065714]
[1728672874001,5.56979168,62896.0,62895.0,0.78265714]
[1728672874428,5.56979168,62896.0,62895.0,0.78065714]
[1728672874570,5.56979168,62896.0,62895.0,1.02635128]
[1728672874986,5.56979168,62896.0,62895.0,0.78065714]
[1728672875229,5.56979168,62896.0,62895.0,1.02635128]
[1728672875420,5.56979168,62896.0,62895.0,0.78065714]
[1728672875628,5.56979168,62896.0,62895.0,1.02635128]
[1728672877369,5.56979168,62896.0,62895.0,1.12794923]
[1728672879250,5.56979168,62896.0,62895.0,0.88225509]
[1728672879460,5.56979168,62896.0,62895.0,1.12794923]
[1728672879740,5.56979168,62896.0,62895.0,0.88225509]
[1728672879916,5.56979168,62896.0,62895.0,1.12794923]
[1728672880162,5.56979168,62896.0,62895.0,0.88225509]
[1728672880339,5.56979168,62896.0,62895.0,1.12794923]
[1728672880549,5.56979168,62896.0,62895.0,0.88225509]
[1728672880763,5.56979168,62896.0,62895.0,1.12794923]
[1728672880998,5.56979168,62896.0,62895.0,0.88225509]
[1728672881214,5.56979168,62896.0,62895.0,1.12794923]
[1728672881419,5.56979168,62896.0,62895.0,0.88225509]
[1728672881626,5.56979168,62896.0,62895.0,1.12794923]
[1728672881828,5.56979168,62896.0,62895.0,0.88225509]
[1728672882030,5.56979168,62896.0,62895.0,1.12794923]
[1728672882236,5.56979168,62896.0,62895.0,0.88225509]
[1728672882443,5.56979168,62896.0,62895.0,1.12794923]
[1728672882655,5.56979168,62896.0,62895.0,0.88225509]
[1728672882871,5.56979168,62896.0,62895.0,1.12794923]
[1728672883075,5.56979168,62896.0,62895.0,0.88225509]
[1728672883278,5.56979168,62896.0,62895.0,1.12794923]
[1728672883492,5.56979168,62896.0,62895.0,0.88225509]
[1728672883694,5.56979168,62896.0,62895.0,1.12794923]
[1728672883900,5.56979168,62896.0,62895.0,0.88225509]
[1728672884111,5.56979168,62896.0,62895.0,1.12794923]
[1728672884293,5.56979168,62896.0,62895.0,0.88225509]
[1728672884501,5.56979168,62896.0,62895.0,1.12794923]
[1728672884702,5.56979168,62896.0,62895.0,0.88225509]
[1728672884906,5.56979168,62896.0,62895.0,0.88261145]
[1728672888336,5.56979168,62896.0,62895.0,0.88061145]
[1728672888805,5.56979168,62896.0,62895.0,0.88261145]
[1728672889035,5.56515016,62896.0,62895.0,0.88261145]
[1728672889778,5.56515016,62896.0,62895.0,0.7830135]
[1728672890423,5.51544902,62896.0,62895.0,0.99348421]
[1728672890789,5.51544902,62896.0,62895.0,0.7830135]
[1728672891743,5.51544902,62896.0,62895.0,0.7810135]
[1728672891980,5.51544902,62896.0,62895.0,0.7830135]
[1728672893444,5.51544902,62896.0,62895.0,0.78292035]
[1728672894191,5.51544902,62896.0,62895.0,0.99139587]
[1728672894431,5.51544902,62896.0,62895.0,0.78092035]
[1728672895951,5.51544902,62896.0,62895.0,0.78292035]
[1728672896231,5.51544902,62896.0,62895.0,0.78092035]
[1728672901478,5.51544902,62896.0,62895.0,0.78095974]
[1728672902066,5.51544902,62896.0,62895.0,0.78295974]
[1728672902291,5.51544902,62896.0,62895.0,0.78095974]
[1728672903139,5.51544902,62896.0,62895.0,0.78295974]
[1728672903860,5.51544902,62896.0,62895.0,0.85945974]
[1728672906933,5.51544902,62896.0,62895.0,1.10507861]
[1728672907134,5.51544902,62896.0,62895.0,1.10307861]
[1728672907338,5.51544902,62896.0,62895.0,1.02657861]
[1728672908702,5.51544902,62896.0,62895.0,0.78095974]
[1728672909203,5.51544902,62896.0,62895.0,1.02657861]
[1728672909773,5.51544902,62896.0,62895.0,1.02857861]
[1728672911211,5.51544902,62896.0,62895.0,1.02657861]
[1728672915742,5.51544902,62896.0,62895.0,1.02748348]
[1728672919032,5.51544902,62896.0,62895.0,1.02948348]
[1728672919523,5.51544902,62896.0,62895.0,1.22948348]
[1728672920898,5.51544902,62896.0,62895.0,1.39023235]
[1728672921799,5.51544902,62896.0,62895.0,1.38823235]
[1728672921995,5.51544902,62896.0,62895.0,1.22748348]
[1728672922207,5.51544902,62896.0,62895.0,1.39023235]
[1728672922416,5.51544902,62896.0,62895.0,1.22948348]
[1728672922620,5.51544902,62896.0,62895.0,1.39023235]
[1728672923709,5.51544902,62896.0,62895.0,1.22948348]
[1728672925436,5.51544902,62896.0,62895.0,1.22937469]
[1728672929717,5.51544902,62896.0,62895.0,1.22737469]
[1728672930050,5.51544902,62896.0,62895.0,1.22937469]
[1728672930437,5.51544902,62896.0,62895.0,1.22737469]
[1728672932157,5.51544902,62896.0,62895.0,1.22937469]
[1728672935272,5.51544902,62896.0,62895.0,1.22737469]
[1728672935735,5.51544902,62896.0,62895.0,1.22937469]
[1728672937581,5.51544902,62896.0,62895.0,1.22737469]
[1728672937723,5.51544902,62896.0,62895.0,1.22937469]
[1728672944591,5.51544902,62896.0,62895.0,1.22947604]
[1728672947805,5.51544902,62896.0,62895.0,1.39021398]
[1728672948051,5.46575102,62896.0,62895.0,1.24436508]
[1728672949173,5.46575102,62896.0,62895.0,1.22947604]
[1728672949437,5.46575102,62896.0,62895.0,1.22929667]
[1728672952313,5.46575102,62896.0,62895.0,1.22729667]
[1728672952816,5.46575102,62896.0,62895.0,0.98325893]
[1728672953057,5.46575102,62896.0,62895.0,1.22929667]
[1728672953342,5.46575102,62896.0,62895.0,0.98325893]
[1728672953587,5.46575102,62896.0,62895.0,1.22929667]
[1728672954573,5.46575102,62896.0,62895.0,1.08285688]
[1728672957277,5.46575102,62896.0,62895.0,0.78125893]
[1728672957753,5.46575102,62896.0,62895.0,0.75825893]
[1728672958227,5.46575102,62896.0,62895.0,1.00429667]
[1728672959169,5.46575102,62896.0,62895.0,1.02729667]
[1728672960617,5.46575102,62896.0,62895.0,1.22998089]
[1728672961370,5.41605254,62896.0,62895.0,0.99888439]
[1728672962075,5.41605254,62896.0,62895.0,0.98401069]
[1728672962305,5.41605254,62896.0,62895.0,0.98399663]
[1728672962562,5.41605254,62896.0,62895.0,0.98599663]
[1728672963585,5.41605254,62896.0,62895.0,1.23194714]
[1728672965438,5.41605254,62896.0,62895.0,3.00291414]
[1728672965996,5.41605254,62896.0,62895.0,5.98036414]
[1728672966951,5.41605254,62896.0,62895.0,5.68915881]
[1728672967743,5.41605254,62896.0,62895.0,5.27654781]
[1728672968316,5.41605254,62896.0,62895.0,5.26574481]
[1728672968713,5.41605254,62896.0,62895.0,4.69179981]
[1728672968935,5.41605254,62896.0,62895.0,4.59924581]
[1728672969569,5.41605254,62896.0,62895.0,4.57550281]
[1728672969780,5.41605254,62896.0,62895.0,1.02680981]
[1728672969978,5.41605254,62896.0,62895.0,0.78105607]
[1728672971347,5.41605254,62896.0,62895.0,1.02680981]
[1728672971563,5.41605254,62896.0,62895.0,1.02673406]
[1728672982969,5.32065554,62896.0,62895.0,1.23143406]
[1728672983175,5.25705754,62896.0,62895.0,3.42914751]
[1728672983801,5.25705754,62896.0,62895.0,3.41514751]
[1728672984008,5.25705754,62896.0,62895.0,3.40114751]
[1728672984214,5.25705754,62896.0,62895.0,3.41514751]
[1728672984419,5.25705754,62896.0,62895.0,3.42914751]
[1728672984624,5.25705754,62896.0,62895.0,3.40114751]
[1728672984828,5.25705754,62896.0,62895.0,3.42914751]
[1728672985060,4.98901223,62896.0,62895.0,3.42914751]
[1728672985914,4.79274254,62896.0,62895.0,3.4289597]
[1728672986122,4.77278509,62896.0,62895.0,3.4289597]
[1728672986325,4.77278509,62896.0,62895.0,0.9875367]
[1728672986527,4.67738809,62896.0,62895.0,6.8764597]
[1728672986747,4.61379009,62896.0,62895.0,7.12190631]
[1728672987154,4.61379009,62896.0,62895.0,7.11262175]
[1728672987465,4.61379009,62896.0,62895.0,7.12307479]
[1728672988092,4.54119209,62896.0,62895.0,7.12307479]
[1728672989404,4.41399609,62896.0,62895.0,7.12307479]
[1728672989987,4.35039809,62896.0,62895.0,7.12307479]
[1728672990196,4.0267552,62896.0,62895.0,7.12307479]
[1728672990401,3.76398276,62896.0,62895.0,7.12307479]
[1728672990774,3.62025145,62896.0,62895.0,7.15496479]
[1728672991090,3.53395145,62896.0,62895.0,7.14096479]
[1728672991311,3.53395145,62896.0,62895.0,7.12696479]
[1728672991312,3.27863145,62896.0,62895.0,7.12696479]
[1728672991513,3.18323445,62896.0,62895.0,7.15496479]
[1728672991726,2.83233645,62896.0,62895.0,7.14096479]
[1728672991909,2.82491645,62896.0,62895.0,7.14096479]
[1728672992083,2.81891645,62896.0,62895.0,7.15496479]
[1728672992508,2.69172045,62896.0,62895.0,7.11330979]
[1728672992680,2.65992145,62896.0,62895.0,7.11330979]
[1728672992925,2.65992145,62896.0,62895.0,7.09930979]
[1728672993303,2.65992145,62896.0,62895.0,7.11330979]
[1728672993498,2.56452445,62896.0,62895.0,7.11330979]
[1728672993721,2.50092645,62896.0,62895.0,7.11330979]
[1728672994083,2.49292645,62896.0,62895.0,7.11330979]
[1728672994296,2.49292645,62896.0,62895.0,7.05631179]
[1728672994520,2.36573045,62896.0,62895.0,7.05631179]
[1728672994741,2.33393145,62896.0,62895.0,7.05631179]
[1728672995407,2.33393145,62896.0,62895.0,7.05560971]
[1728672996789,2.33393145,62896.0,62895.0,7.00036971]
[1728672997515,2.32793145,62896.0,62895.0,7.00036971]
[1728672997718,2.32793145,62896.0,62895.0,6.83713371]
[1728672998366,2.32793145,62896.0,62895.0,5.86575671]
[1728672999891,2.29415774,62896.0,62895.0,5.86575671]
[1728673000301,2.29415774,62896.0,62895.0,5.44569317]
[1728673000577,2.29415774,62896.0,62895.0,5.86580887]
[1728673002439,2.26037774,62896.0,62895.0,5.86580887]
[1728673004019,2.24924381,62896.0,62895.0,5.86580887]
[1728673004702,2.24924381,62896.0,62895.0,6.21582934]
[1728673004902,2.24924381,62896.0,62895.0,5.86576301]
[1728673005285,2.24924381,62896.0,62895.0,5.86572322]
[1728673005695,2.24924381,62896.0,62895.0,7.04320722]
[1728673005857,2.15384681,62896.0,62895.0,6.95924822]
[1728673006090,2.15384681,62896.0,62895.0,7.43622822]
[1728673007448,2.13321681,62896.0,62895.0,7.43622822]
[1728673008537,2.09977681,62896.0,62895.0,7.43622822]
[1728673008740,2.03101681,62896.0,62895.0,7.43622822]
[1728673009848,2.03101681,62896.0,62895.0,7.01619817]
[1728673010044,2.03101681,62896.0,62895.0,7.43619921]
[1728673010506,1.96510781,62896.0,62895.0,7.43619921]
[1728673011103,1.83499081,62896.0,62895.0,7.43619921]
[1728673011305,1.80319181,62896.0,62895.0,7.43619921]
[1728673011558,1.69979481,62896.0,62895.0,7.43619921]
[1728673012031,1.69518505,62896.0,62895.0,7.43619921]
[1728673014866,1.69350905,62896.0,62895.0,7.43618605]
[1728673016513,1.68550905,62896.0,62895.0,7.43618605]
[1728673017591,1.68550905,62896.0,62895.0,1.74224405]
[1728673017798,1.68550905,62896.0,62895.0,7.38617412]
[1728673018048,1.68550905,62896.0,62895.0,7.63116705]
[1728673018925,1.66563905,62896.0,62895.0,7.63116705]
[1728673019340,1.65530683,62896.0,62895.0,7.63116705]
[1728673019793,1.65530683,62896.0,62895.0,7.63126022]
[1728673020353,1.64830683,62896.0,62895.0,7.63126022]
[1728673020600,1.42696657,62896.0,62895.0,7.63126022]
[1728673021063,1.42696657,62896.0,62895.0,6.92180822]
[1728673021301,1.42096657,62896.0,62895.0,6.92180822]
[1728673023817,1.39298176,62896.0,62895.0,6.92180822]
[1728673024271,1.35880176,62896.0,62895.0,6.92180822]
[1728673024729,1.32516176,62896.0,62895.0,6.92180822]
[1728673027632,1.32516176,62896.0,62895.0,6.74713065]
[1728673027849,1.32516176,62896.0,62895.0,6.92243177]
[1728673028272,1.32516176,62896.0,62895.0,7.4482289]
[1728673030516,1.32516176,62896.0,62895.0,6.7092859]
[1728673031238,1.32516176,62896.0,62895.0,6.5339977]
[1728673032059,1.32516176,62896.0,62895.0,1.9720697]
[1728673032288,1.32516176,62896.0,62895.0,6.6886827]
[1728673032733,1.31508268,62896.0,62895.0,6.6886827]
[1728673033680,1.31508268,62896.0,62895.0,6.33817377]
[1728673033898,1.31508268,62896.0,62895.0,6.6886827]
[1728673039146,1.31508268,62896.0,62895.0,6.6179177]
[1728673039571,1.31508268,62896.0,62895.0,6.5346177]
[1728673039782,1.31508268,62896.0,62895.0,6.18410877]
[1728673043508,1.29573268,62896.0,62895.0,6.5346177]
[1728673043723,1.29573268,62896.0,62895.0,6.18410877]
[1728673045950,1.29573268,62896.0,62895.0,1.53826077]
[1728673046168,1.29573268,62896.0,62895.0,7.35904677]
[1728673046381,1.29573268,62896.0,62895.0,7.5916627]
[1728673047032,1.29573268,62896.0,62895.0,6.6851617]
[1728673049254,1.29573268,62896.0,62895.0,6.3850197]
[1728673049465,1.29573268,62896.0,62895.0,6.03451077]
[1728673052677,1.27625268,62896.0,62895.0,6.03451077]
[1728673052995,1.21895268,62896.0,62895.0,6.03451077]
[1728673053259,1.21895268,62896.0,62895.0,5.71790877]
[1728673053726,1.20395268,62896.0,62895.0,5.71790877]
[1728673055574,1.16944268,62896.0,62895.0,5.71790877]
[1728673056460,1.16944268,62896.0,62895.0,5.79530877]
[1728673057137,1.11975292,62896.0,62895.0,5.81016275]
[1728673057816,1.11975292,62896.0,62895.0,5.81051891]
[1728673058344,1.11975292,62896.0,62895.0,5.79566493]
[1728673060142,1.11975292,62896.0,62895.0,5.81051954]
[1728673060649,1.11975292,62896.0,62895.0,7.51979454]
[1728673060846,1.11975292,62896.0,62895.0,7.87030347]
[1728673061546,1.11975292,62896.0,62895.0,7.87030491]
[1728673063267,1.11975292,62896.0,62895.0,7.86830491]
[1728673063480,1.11975292,62896.0,62895.0,7.87030491]
[1728673064966,1.11975292,62896.0,62895.0,7.86793657]
[1728673065178,1.11975292,62896.0,62895.0,7.87029293]